bitfinex-derivatives/quotes_ETHF0:USTF0_20250101
["timestamp","ask_amount","ask_price","bid_price","bid_amount"]
[1735729671029,0.30084,3330.6,3330.4,1.48484]
[1735729671425,0.30084,3330.6,3330.5,0.30084]
[1735729672225,0.30082,3330.7,3330.6,0.30083]
[1735729672933,1.3318,3330.8,3330.7,0.30082]
[1735729673424,1.63261,3330.8,3330.7,0.30082]
[1735729674232,0.30082,3330.7,3330.6,1.48482]
[1735729677027,1.3318,3330.8,3330.6,1.184]
[1735729677232,1.63262,3330.8,3330.7,0.30082]
[1735729677430,0.30082,3330.7,3330.6,1.48482]
[1735729678637,4.5396,3330.8,3329.9,2.29389511]
[1735729678838,0.30088,3330.1,3330.0,1.48488]
[1735729679538,0.30088,3330.1,3330.0,0.30088]
[1735729679837,0.30087,3330.2,3330.1,0.30087]
[1735729681736,0.3009,3329.8,3329.7,1.48491]
[1735729682036,0.30094,3329.3,3329.2,42.28495]
[1735729682228,0.30094,3329.3,3329.2,41.10095]
[1735729682536,0.30094,3329.3,3329.2,42.28495]
[1735729682831,0.30094,3329.3,3329.2,41.984]
[1735729683135,0.30094,3329.3,3329.2,1.184]
[1735729683337,0.30094,3329.3,3329.2,1.48495]
[1735729683639,0.30093,3329.5,3329.4,0.30093]
[1735729685734,0.30093,3329.5,3329.4,41.10093]
[1735729686333,3.50869,3329.9,3329.8,0.3009]
[1735729686526,4.66847539,3331.2,3329.8,5.50169511]
[1735729686735,0.3008,3331.0,3330.8,0.30081]
[1735729686936,0.3008,3331.0,3330.8,1.48681]
[1735729687133,0.3008,3331.0,3330.9,40.8]
[1735729687436,0.3008,3330.9,3330.8,1.48681]
[1735729687836,3.2078,3331.2,3330.8,1.48681]
[1735729688142,0.3008,3331.0,3330.8,1.48681]
[1735729688633,0.30079,3331.1,3330.9,0.3008]
[1735729689027,3.2078,3331.2,3330.8,1.186]
[1735729689028,3.2078,3331.2,3331.0,0.30079]
[1735729689233,0.30078,3331.1,3331.0,0.30079]
[1735729689633,3.2078,3331.2,3331.1,0.30078]
[1735729690240,0.30079,3331.1,3330.9,0.3008]
[1735729690429,3.2078,3331.2,3330.8,1.186]
[1735729690635,3.50858,3331.2,3331.0,0.30079]
[1735729690934,0.30079,3331.1,3330.9,0.3008]
[1735729691140,0.3008,3330.9,3330.8,1.186]
[1735729692435,0.3008,3330.9,3330.6,3.2078]
[1735729692436,0.30082,3330.7,3330.6,3.2078]
[1735729692931,0.30084,3330.5,3330.4,1.186]
[1735729693331,0.74163,3330.6,3330.5,0.30084]
[1735729693536,0.4408,3330.6,3330.5,0.30084]
[1735729693937,0.74163,3330.6,3330.5,0.30084]
[1735729694543,0.4408,3330.6,3330.4,1.186]
[1735729694743,0.30085,3330.3,3330.2,5.80255511]
[1735729694938,0.30085,3330.3,3330.2,3.52879865]
[1735729695137,0.4408,3330.6,3329.9,2.29389511]
[1735729695340,0.30087,3330.1,3330.0,1.48688]
[1735729696049,0.30087,3330.1,3330.0,0.30088]
[1735729698645,3.2078,3330.3,3329.9,3.47989511]
[1735729698845,0.75088,3330.0,3329.9,3.78078511]
[1735729699440,0.45,3330.0,3329.9,3.78078511]
[1735729699648,0.45,3330.0,3329.9,2.59478511]
[1735729702743,3.50865,3330.3,3330.2,0.30086]
[1735729703545,3.2078,3330.3,3329.9,2.29389511]
[1735729703746,0.30087,3330.2,3330.1,0.30087]
[1735729704046,3.2078,3330.3,3330.2,0.30086]
[1735729704248,3.2078,3330.3,3330.2,2.59475511]
[1735729705851,0.4647,3330.7,3330.6,0.30083]
[1735729706047,0.4647,3330.7,3330.6,2.59472511]
[1735729707952,3.2078,3331.1,3331.0,0.30079]
[1735729708251,3.2078,3331.1,3331.0,2.59468511]
[1735729709755,0.8948,3331.4,3331.3,0.30076]
[1735729709962,0.8948,3331.4,3331.3,2.59465511]
[1735729712955,1.19556,3331.4,3331.3,2.59465511]
[1735729713149,0.74305,3331.5,3331.3,2.29389511]
[1735729713449,0.74305,3331.5,3331.4,0.30076]
[1735729714151,0.74305,3331.5,3331.4,1.188]
[1735729716553,0.4423,3331.5,3331.1,1.188]
[1735729716747,0.4423,3331.5,3331.0,3.2078]
[1735729716947,0.30076,3331.4,3331.1,1.188]
[1735729717251,0.30076,3331.4,3331.3,0.30076]
[1735729718162,0.4423,3331.5,3331.1,1.188]
[1735729718355,0.30076,3331.4,3331.2,0.30077]
[1735729718654,0.4423,3331.5,3331.1,1.188]
[1735729718855,0.4423,3331.5,3331.4,0.30076]
[1735729721050,0.4423,3331.5,3331.1,1.188]
[1735729721251,0.30076,3331.4,3331.3,0.30076]
[1735729721753,0.3032227,3331.4,3331.3,0.30076]
[1735729726655,0.0024627,3331.4,3331.3,0.30076]
[1735729726855,0.3032227,3331.4,3331.3,0.30076]
[1735729727156,0.0024627,3331.4,3331.3,0.30076]
[1735729734067,0.0024627,3331.4,3331.1,4.3958]
[1735729734260,0.30077,3331.3,3331.2,0.30076]
[1735729734661,0.72167,3331.3,3331.2,0.30076]
[1735729735863,0.4209,3331.3,3331.2,0.30076]
[1735729736066,0.72166,3331.3,3331.2,0.30076]
[1735729737454,0.4209,3331.3,3331.2,0.30076]
[1735729737860,0.72166,3331.3,3331.2,0.30076]
[1735729740568,0.4209,3331.3,3331.2,0.30076]
[1735729741364,0.0024627,3331.4,3331.3,0.30076]
[1735729741561,0.0024627,3331.4,3331.3,0.62280351]
[1735729741764,0.0024627,3331.4,3331.3,0.62279597]
[1735729742063,0.0024627,3331.4,3331.3,41.42279597]
[1735729742463,0.3032227,3331.4,3331.3,1.16182849]
[1735729742657,0.3032227,3331.4,3331.3,0.86106849]
[1735729742862,0.3032227,3331.4,3331.3,1.16182849]
[1735729743364,0.3032227,3331.4,3331.3,0.86106849]
[1735729743867,0.3032227,3331.4,3331.3,1.62453261]
[1735729744767,0.3032227,3331.4,3331.3,1.10036507]
[1735729744965,3.5110227,3331.4,3331.3,1.33866155]
[1735729745263,3.5110227,3331.4,3330.7,0.68955811]
[1735729745264,3.9621827,3331.4,3330.9,0.3008]
[1735729745464,0.30079,3331.0,3330.9,0.3008]
[1735729746057,3.9621827,3331.4,3330.8,1.185]
[1735729746258,0.4392,3330.9,3330.7,0.344779]
[1735729746467,0.74971,3330.8,3330.7,0.344779]
[1735729746869,0.30082,3330.7,3330.6,0.30083]
[1735729748167,0.74971,3330.8,3330.7,0.30082]
[1735729748364,0.9095,3330.8,3330.7,0.30082]
[1735729748866,1.21031,3330.8,3330.7,0.30082]
[1735729749067,0.9095,3330.8,3330.7,0.30082]
[1735729751166,0.4489,3330.8,3330.7,0.30082]
[1735729751364,0.4253,3331.2,3330.7,2.59471511]
[1735729751559,0.4253,3331.2,3331.1,0.30078]
[1735729751560,1.16987,3331.2,3331.1,0.30078]
[1735729751758,0.8691,3331.2,3331.1,0.30078]
[1735729751965,0.8691,3331.2,3331.1,41.10078]
[1735729752265,1.16987,3331.2,3331.1,40.8]
[1735729752471,1.16987,3331.2,3331.1,0.30078]
[1735729755572,1.16987,3331.2,3331.1,1.48678]
[1735729757670,1.16987,3331.2,3331.1,1.186]
[1735729759275,1.16987,3331.2,3331.1,1.48678]
[1735729759777,1.16987,3331.2,3331.1,1.186]
[1735729762277,7.01360992,3331.2,3331.1,1.186]
[1735729762681,7.01360992,3331.2,3331.1,1.48678]
[1735729763181,1.16987,3331.2,3331.1,1.48678]
[1735729763976,1.16987,3331.2,3331.1,1.81384935]
[1735729764176,0.74457,3331.2,3331.1,1.81384935]
[1735729764480,5.45922584,3331.2,3331.1,1.81384935]
[1735729765281,0.74457,3331.2,3331.1,1.81384935]
[1735729766477,0.74457,3331.2,3331.1,1.81385995]
[1735729766677,0.4438,3331.2,3331.1,2.27235995]
[1735729766979,0.74457,3331.2,3331.1,2.27235995]
[1735729767681,0.74457,3331.2,3331.1,2.64854434]
[1735729767881,0.4438,3331.2,3331.1,2.27235995]
[1735729768075,0.4438,3331.2,3331.1,2.64855001]
[1735729768475,5.13755584,3331.3,3331.1,2.64855001]
[1735729768476,4.71465584,3331.3,3331.2,0.30077]
[1735729768676,0.0024627,3331.4,3331.2,0.30077]
[1735729768677,0.0024627,3331.4,3331.2,4.43441418]
[1735729768877,0.0024627,3331.4,3331.3,3.82126929]
[1735729769377,0.0024627,3331.4,3331.3,44.62126929]
[1735729769573,0.0024627,3331.4,3331.3,44.6212103]
[1735729770181,0.0024627,3331.4,3331.3,50.6287134]
[1735729770483,0.0024627,3331.4,3331.3,50.10538736]
[1735729770980,0.0024627,3331.4,3331.3,50.10527392]
[1735729771684,0.0024627,3331.4,3331.3,49.72911115]
[1735729772680,0.0024627,3331.4,3331.3,49.40215821]
[1735729772889,0.0024627,3331.4,3331.3,49.72905824]
[1735729773386,0.0024627,3331.4,3331.3,49.7290585]
[1735729773586,0.0024627,3331.4,3331.3,49.40215821]
[1735729773882,0.0024627,3331.4,3331.3,49.72901412]
[1735729774086,0.0024627,3331.4,3331.3,50.1051491]
[1735729774281,0.0024627,3331.4,3331.3,50.62811703]
[1735729774683,0.0024627,3331.4,3331.3,50.1051491]
[1735729774981,0.0024627,3331.4,3331.3,49.77828967]
[1735729775186,0.0024627,3331.4,3331.3,50.10506166]
[1735729775581,0.0024627,3331.4,3331.3,49.7289302]
[1735729775782,0.9101,3331.8,3331.7,0.30073]
[1735729777580,0.9101,3331.8,3331.7,0.74093]
[1735729779493,0.9101,3331.8,3331.7,0.30073]
[1735729781487,1.21082,3331.8,3331.7,0.30073]
[1735729781893,0.9101,3331.8,3331.7,0.30073]
[1735729785302,1.21082,3331.8,3331.7,0.30073]
[1735729785701,0.9101,3331.8,3331.7,1.48373]
[1735729785901,0.9101,3331.8,3331.7,0.30073]
[1735729786103,0.9101,3331.8,3331.7,1.48373]
[1735729786303,0.9101,3331.8,3331.7,2.56749347]
[1735729792302,0.4441,3331.8,3331.7,2.56749347]
[1735729794704,0.4441,3331.8,3331.7,2.89469152]
[1735729797504,0.4441,3331.8,3331.7,3.27104856]
[1735729799207,0.4441,3331.8,3331.7,3.79507421]
[1735729799408,0.4441,3331.8,3331.7,3.27104856]
[1735729799612,0.4441,3331.8,3331.7,3.79507506]
[1735729800813,0.4441,3331.8,3331.7,3.7951891]
[1735729801122,0.68371834,3331.8,3331.7,2.56749347]
[1735729801311,0.68371834,3331.8,3331.7,3.79518909]
[1735729801609,0.68371834,3331.8,3331.7,2.94362563]
[1735729802108,0.68371834,3331.8,3331.7,2.56749347]
[1735729805413,0.68371834,3331.8,3331.7,3.03766157]
[1735729809109,0.68371834,3331.8,3331.7,3.41379569]
[1735729809713,0.68371834,3331.8,3331.7,3.74141648]
[1735729809914,6.52745826,3331.8,3331.7,3.74141648]
[1735729812008,6.52745826,3331.8,3331.7,3.36530111]
[1735729812210,6.52745826,3331.8,3331.7,3.74143466]
[1735729812517,6.52745826,3331.8,3331.7,3.74143583]
[1735729813220,0.68371834,3331.8,3331.7,8.46834995]
[1735729814224,0.68371834,3331.8,3331.7,14.48337541]
[1735729814921,0.68371834,3331.8,3331.7,9.75646129]
[1735729815221,0.68371834,3331.8,3331.7,9.75646124]
[1735729815618,0.68371834,3331.8,3331.7,8.57346124]
[1735729815819,0.68371834,3331.8,3331.7,9.75146124]
[1735729816122,0.68371834,3331.8,3331.7,16.84183243]
[1735729818223,0.68371834,3331.8,3331.7,16.8418307]
[1735729819019,0.23961834,3331.8,3331.7,17.36611022]
[1735729819227,0.23961834,3331.8,3331.7,17.96787291]
[1735729819723,0.23961834,3331.8,3331.7,18.99719833]
[1735729820325,0.23961834,3331.8,3331.7,18.65252513]
[1735729820528,0.23961834,3331.8,3331.7,35.44337062]
[1735729820731,0.23961834,3331.8,3331.7,35.87727062]
[1735729821220,0.23961834,3331.8,3331.7,36.66697489]
[1735729821619,0.23961834,3331.8,3331.7,24.81615047]
[1735729821832,0.23961834,3331.8,3331.7,24.10186142]
[1735729822125,0.23961834,3331.8,3331.7,23.34968033]
[1735729824040,0.23961834,3331.8,3331.7,20.78540054]
[1735729824344,0.23961834,3331.8,3331.7,19.47685312]
[1735729824531,0.23961834,3331.8,3331.7,20.18352506]
[1735729824727,0.23961834,3331.8,3331.7,19.65445393]
[1735729825029,0.23961834,3331.8,3331.7,22.86225393]
[1735729825426,0.23961834,3331.8,3331.7,20.16659046]
[1735729825633,0.99553834,3331.8,3331.7,21.7215995]
[1735729825823,0.99553834,3331.8,3331.7,15.48113793]
[1735729826028,0.99553834,3331.8,3331.7,13.11449653]
[1735729827319,0.30074,3331.6,3331.5,1.38450347]
[1735729828033,6.14447992,3331.6,3331.5,1.38450347]
[1735729828235,6.38409826,3331.6,3331.5,1.38450347]
[1735729832122,6.08335826,3331.6,3331.5,1.38450347]
[1735729832731,0.66791834,3331.6,3331.5,1.38450347]
[1735729833331,0.66791834,3331.6,3331.5,2.09118986]
[1735729834240,0.66791834,3331.6,3331.5,1.38450347]
[1735729834442,0.66791834,3331.6,3331.5,3.03270327]
[1735729835131,5.3821451,3331.6,3331.5,3.03270327]
[1735729835733,5.3821451,3331.6,3331.5,3.26912485]
[1735729835936,5.3821451,3331.6,3331.5,3.46743241]
[1735729836235,0.66791834,3331.6,3331.5,8.95450445]
[1735729837230,0.66791834,3331.6,3331.5,9.42467494]
[1735729837438,0.66791834,3331.6,3331.5,10.13127018]
[1735729837639,0.66791834,3331.6,3331.5,10.28390213]
[1735729838043,0.66791834,3331.6,3331.5,10.88569634]
[1735729838940,0.66791834,3331.6,3331.5,17.98516741]
[1735729840233,0.66791834,3331.6,3331.5,17.45640711]
[1735729840439,0.66791834,3331.6,3331.5,16.85460324]
[1735729841337,0.66791834,3331.6,3331.5,15.77083977]
[1735729841534,0.66791834,3331.6,3331.5,14.21671235]
[1735729841734,0.66791834,3331.6,3331.5,13.88624616]
[1735729843650,0.66791834,3331.6,3331.5,5.50264182]
[1735729844848,0.96865834,3331.6,3331.5,4.73173133]
[1735729845047,4.17645834,3331.6,3331.5,2.31543133]
[1735729846343,0.30075,3331.5,3331.4,0.30075]
[1735729847147,0.54036834,3331.5,3331.4,0.30075]
[1735729847648,0.30076,3331.4,3331.3,1.38452347]
[1735729848148,0.54037834,3331.4,3331.3,1.38452347]
[1735729849945,6.38411826,3331.4,3331.3,1.38452347]
[1735729852152,0.54037834,3331.4,3331.3,1.38452347]
[1735729853454,1.00477834,3331.4,3331.3,1.38452347]
[1735729856650,0.70401834,3331.4,3331.3,1.38452347]
[1735729856955,0.30077,3331.3,3331.2,1.38452347]
[1735729857151,0.74927,3331.3,3331.2,1.38452347]
[1735729857355,0.98888834,3331.3,3331.2,1.38452347]
[1735729863359,0.98888834,3331.3,3331.2,1.85478292]
[1735729868363,0.98888834,3331.3,3331.2,2.18537617]
[1735729868763,5.70329408,3331.3,3331.2,2.18537617]
[1735729870662,5.70329408,3331.3,3331.2,1.85478292]
[1735729871167,5.70329408,3331.3,3331.2,0.77101945]
[1735729872077,0.98888834,3331.3,3331.2,0.77101945]
[1735729873366,0.98888834,3331.3,3331.2,1.10200035]
[1735729875269,0.98888834,3331.3,3331.2,1.1021599]
[1735729877579,0.98888834,3331.3,3331.2,0.8013999]
[1735729877876,0.98888834,3331.3,3331.2,1.17761018]
[1735729881081,0.98888834,3331.3,3331.2,0.8013999]
[1735729881387,0.98888834,3331.3,3331.2,0.47025945]
[1735729881575,0.30077,3331.2,3331.1,1.0]
[1735729881881,0.3008,3330.9,3330.8,7.09947107]
[1735729882078,4.59236347,3330.9,3330.8,7.09947107]
[1735729882279,4.83198181,3330.9,3330.8,7.09947107]
[1735729882880,0.30085,3330.4,3330.3,1.08376347]
[1735729883281,0.54046834,3330.4,3330.3,1.08376347]
[1735729883679,0.97126834,3330.4,3330.3,1.08376347]
[1735729884084,0.97126834,3330.4,3330.3,1.38461347]
[1735729884988,1.43736834,3330.4,3330.3,1.38461347]
[1735729885586,0.23961834,3330.4,3330.3,1.38461347]
[1735729885881,4.71534934,3330.6,3330.3,2.24929517]
[1735729886187,4.71534934,3330.9,3330.8,0.30081]
[1735729886479,4.71534934,3330.9,3330.8,42.18457347]
[1735729887403,0.3008,3330.9,3330.8,42.18457347]
[1735729888589,0.3008,3330.9,3330.8,1.38457347]
[1735729889983,0.3008,3330.9,3330.8,1.08376347]
[1735729890287,0.3008,3331.0,3330.9,0.3008]
[1735729890481,0.3008,3331.0,3330.9,1.38456347]
[1735729890682,0.3008,3331.0,3330.9,1.08376347]
[1735729891383,0.30079,3331.0,3330.4,1.08376347]
[1735729891583,0.30082,3330.7,3330.6,1.08376347]
[1735729892082,0.75382,3330.7,3330.6,1.08376347]
[1735729892484,0.30085,3330.4,3330.3,7.09947107]
[1735729892691,0.30085,3330.4,3330.3,0.47036935]
[1735729892883,0.30086,3330.2,3330.1,2.72206347]
[1735729893488,0.75386,3330.2,3330.1,2.72206347]
[1735729895184,0.75386,3330.2,3330.1,1.54306347]
[1735729896391,3.2078,3330.5,3330.1,1.54306347]
[1735729896590,0.30084,3330.5,3330.4,1.08376347]
[1735729899390,3.2078,3330.8,3330.4,1.08376347]
[1735729899591,0.30082,3330.7,3330.6,1.08376347]
[1735729902882,3.2078,3330.8,3330.4,1.08376347]
[1735729903087,0.30084,3330.5,3330.4,1.08376347]
[1735729907496,0.30086,3330.2,3330.1,0.4593]
[1735729907700,0.30086,3330.2,3330.1,2.01343651]
[1735729908801,0.30086,3330.2,3330.1,0.47037304]
[1735729909393,0.30087,3330.1,3330.0,4.29156347]
[1735729909788,0.30087,3330.1,3330.0,4.76197799]
[1735729912702,0.30087,3330.1,3330.0,1.55417799]
[1735729916116,0.30087,3330.1,3330.0,0.47041452]
[1735729917396,0.8925,3330.3,3329.8,1.08376347]
[1735729917700,0.30089,3329.9,3329.8,1.08376347]
[1735729918306,0.30089,3329.9,3329.8,1.87349565]
[1735729918804,0.30089,3329.9,3329.8,1.87347851]
[1735729919402,0.30089,3329.9,3329.8,2.24981628]
[1735729920310,0.30089,3329.9,3329.8,0.78971504]
[1735729920509,0.30089,3329.9,3329.8,2.24991241]
[1735729921001,0.30089,3329.9,3329.8,2.24990665]
[1735729923405,0.30089,3329.9,3329.8,2.2499313]
[1735729926416,0.30089,3329.9,3329.8,1.55418532]
[1735729926708,0.30089,3329.9,3329.8,2.24993585]
[1735729927105,0.30089,3329.9,3329.8,2.24993529]
[1735729928602,0.30089,3329.9,3329.8,2.99303529]
[1735729928806,0.30089,3329.9,3329.8,2.99303486]
[1735729929510,0.30089,3329.9,3329.8,2.52261301]
[1735729929709,0.30089,3329.9,3329.8,2.99303356]
[1735729932715,0.30089,3329.9,3329.8,2.99314271]
[1735729935913,0.30089,3329.9,3329.8,2.99314249]
[1735729936916,0.30089,3329.9,3329.8,8.95585132]
[1735729939014,0.30089,3329.9,3329.8,9.46800199]
[1735729939218,0.30089,3329.9,3329.8,8.95619782]
[1735729939716,0.30089,3329.9,3329.8,8.51399782]
[1735729940315,0.30089,3329.9,3329.8,9.025808]
[1735729943318,0.30089,3329.9,3329.8,9.627946]
[1735729945517,0.30089,3329.9,3329.8,9.62808674]
[1735729946821,0.30089,3329.9,3329.8,16.71962929]
[1735729948318,0.30089,3329.9,3329.8,16.71970285]
[1735729949217,4.71325876,3330.2,3329.8,16.41880285]
[1735729949423,4.71325876,3330.2,3330.1,4.59243347]
[1735729949618,4.71325876,3330.2,3330.1,6.40281463]
[1735729949918,4.71325876,3330.2,3330.1,7.75823496]
[1735729950318,4.71325876,3330.2,3330.1,48.55823496]
[1735729950518,5.43897876,3330.7,3330.1,63.67546386]
[1735729950717,5.43897876,3330.7,3330.6,0.30083]
[1735729950923,5.43897876,3330.7,3330.6,1.38459347]
[1735729951123,5.43897876,3330.7,3330.6,1.8550138]
[1735729951421,5.43897876,3330.7,3330.6,2.99824654]
[1735729951622,0.72572,3330.7,3330.6,2.99824654]
[1735729952118,0.4249,3330.7,3330.6,2.99824654]
[1735729952323,5.90066876,3330.8,3330.7,0.30082]
[1735729952524,5.90066876,3330.8,3330.7,1.10561062]
[1735729952722,1.18741,3330.8,3330.7,1.10561062]
[1735729953720,0.4584,3330.8,3330.7,1.10561062]
[1735729953925,5.15215876,3330.9,3330.7,1.10561062]
[1735729953926,4.71325876,3330.9,3330.8,0.30081]
[1735729954224,4.71325876,3330.9,3330.8,1.38457347]
[1735729955125,5.59115876,3331.3,3330.8,1.83579347]
[1735729955426,5.89192876,3331.3,3331.2,1.38453347]
[1735729956325,1.17867,3331.3,3331.2,1.38453347]
[1735729956628,0.8779,3331.3,3331.2,1.38453347]
[1735729956827,0.8779,3331.3,3331.2,2.18872045]
[1735729957028,0.8779,3331.3,3331.2,2.5649015]
[1735729957324,0.30074,3331.6,3331.2,5.09575045]
[1735729957527,5.01398876,3331.7,3331.6,0.30074]
[1735729958530,0.30073,3331.7,3331.6,0.30074]
[1735729959818,1.3536,3331.9,3331.8,0.30072]
[1735729960026,1.65431,3331.9,3331.8,1.38448347]
[1735729960331,1.65431,3331.9,3331.8,1.178]
[1735729964131,0.30072,3331.8,3331.7,1.178]
[1735729965226,0.30076,3331.3,3331.2,3.2078]
[1735729965529,0.30076,3331.3,3331.2,1.08376347]
[1735729966426,0.30079,3331.0,3330.9,4.29156347]
[1735729967126,0.30079,3331.0,3330.9,4.59236347]
[1735729968324,0.30079,3331.0,3330.9,3.5086]
[1735729968735,0.4214,3331.1,3330.9,3.2078]
[1735729968934,0.72219,3331.1,3331.0,0.30079]
[1735729969731,0.4214,3331.1,3331.0,0.30079]
[1735729969931,0.72218,3331.1,3331.0,0.30079]
[1735729975531,0.4214,3331.1,3331.0,0.30079]
[1735729976242,0.4214,3331.1,3331.0,41.10079]
[1735729977541,0.72218,3331.1,3331.0,41.10079]
[1735729978234,0.72218,3331.1,3331.0,0.30079]
[1735729979236,0.72218,3331.1,3331.0,0.63447291]
[1735729979439,0.72218,3331.1,3331.0,1.10471451]
[1735729979936,0.72218,3331.1,3331.0,4.31251451]
[1735729980329,0.72218,3331.1,3331.0,4.6887767]
[1735729982538,0.72218,3331.1,3331.0,4.68877651]
[1735729982932,0.72218,3331.1,3331.0,4.6889292]
[1735729983132,0.4214,3331.1,3331.0,5.22333561]
[1735729983742,0.9013,3331.2,3331.1,0.30078]
[1735729983941,0.30076,3331.4,3331.3,0.30075]
[1735729984242,0.74506,3331.4,3331.3,1.4810892]
[1735729984942,0.74506,3331.4,3331.3,1.1803392]
[1735729985444,0.74506,3331.4,3331.3,0.80414594]
[1735729985638,0.74506,3331.4,3331.3,0.80425934]
[1735729985836,0.74506,3331.4,3331.3,0.4702416]
[1735729986041,0.4443,3331.4,3331.1,0.30078]
[1735729986241,0.30077,3331.2,3331.1,0.30078]
[1735729986442,0.30077,3331.2,3331.1,1.01099492]
[1735729986942,0.30077,3331.2,3331.1,1.48123571]
[1735729988245,0.30077,3331.2,3331.1,2.56528528]
[1735729988644,0.30077,3331.2,3331.1,2.56528181]
[1735729988944,0.30077,3331.2,3331.1,3.09973566]
[1735729991745,0.30077,3331.2,3331.1,3.10000678]
[1735729992043,0.30077,3331.2,3331.1,1.18055888]
[1735729992244,0.30077,3331.2,3331.1,1.18057338]
[1735729992641,0.30077,3331.2,3331.1,0.80436815]
[1735729993647,0.30077,3331.2,3331.1,1.48137149]
[1735729993946,0.30077,3331.2,3331.1,1.18059149]
[1735729994948,0.30077,3331.2,3331.1,1.18078698]
[1735729995438,0.30077,3331.2,3331.1,1.71591794]
[1735729995745,0.30077,3331.2,3331.1,1.18078698]
[1735729996538,0.30077,3331.2,3331.1,1.71591637]
[1735729997845,0.30077,3331.2,3331.1,1.1809384]
[1735729998239,0.30077,3331.2,3331.1,1.71619879]
[1735729999543,0.30077,3331.2,3331.1,2.01697879]
[1735730000948,0.30077,3331.2,3331.1,2.01699602]
[1735730001652,0.30077,3331.2,3331.1,2.01699224]
[1735730002857,0.30077,3331.2,3331.1,1.71621224]
[1735730003150,0.30077,3331.2,3331.1,1.7162029]
[1735730003354,0.30077,3331.2,3331.1,2.0169829]
[1735730005951,4.71325876,3331.4,3331.3,0.30076]
[1735730006158,4.71325876,3331.4,3331.3,3.7029284]
[1735730007157,4.71325876,3331.4,3331.3,3.70257134]
[1735730007357,0.76345,3331.5,3331.4,0.30075]
[1735730007557,0.76345,3331.5,3331.4,2.61851177]
[1735730008258,0.76345,3331.5,3331.4,2.01669361]
[1735730009456,0.4627,3331.5,3331.4,2.01669361]
[1735730009655,0.4627,3331.5,3331.4,3.19469361]
[1735730010251,0.4627,3331.5,3331.4,2.81855726]
[1735730010252,0.76345,3331.5,3331.4,2.81855726]
[1735730010557,0.76345,3331.5,3331.4,3.19426305]
[1735730010558,0.4627,3331.5,3331.4,3.19426305]
[1735730010761,0.4627,3331.5,3331.4,2.85998052]
[1735730010956,0.4627,3331.5,3331.4,7.92528409]
[1735730011156,0.4627,3331.5,3331.4,8.52711081]
[1735730011456,0.4627,3331.5,3331.4,8.52710754]
[1735730011652,0.74554,3331.6,3331.4,8.22635754]
[1735730011858,0.74554,3331.6,3331.5,6.30810063]
[1735730012561,0.74554,3331.6,3331.5,6.30789166]
[1735730012958,0.74554,3331.6,3331.5,5.22384209]
[1735730013161,0.74554,3331.6,3331.5,5.77317058]
[1735730013361,0.74554,3331.6,3331.5,5.77315185]
[1735730014059,0.74554,3331.6,3331.5,5.39701268]
[1735730016467,0.74554,3331.6,3331.5,5.39695088]
[1735730017865,0.74554,3331.6,3331.5,5.06284036]
[1735730018061,0.74554,3331.6,3331.5,5.39693229]
[1735730018661,0.74554,3331.6,3331.5,2.18913229]
[1735730018855,0.74554,3331.6,3331.5,2.18911808]
[1735730020061,0.74554,3331.6,3331.5,2.18910443]
[1735730020267,0.74554,3331.6,3331.5,2.56524595]
[1735730021780,0.74554,3331.6,3331.5,1.85504036]
[1735730022067,0.74554,3331.6,3331.5,2.56521247]
[1735730022769,0.74554,3331.6,3331.5,2.56520973]
[1735730023865,5.45879876,3331.6,3331.5,2.56520973]
[1735730025571,4.71325876,3331.6,3331.5,3.70153962]
[1735730025867,4.71325876,3331.6,3331.5,4.164216]
[1735730026271,4.71325876,3331.8,3331.7,0.30073]
[1735730026460,4.71325876,3331.8,3331.7,2.62945145]
[1735730026765,4.71325876,3331.8,3331.7,3.09969224]
[1735730027365,5.01397876,3331.8,3331.7,3.09969224]
[1735730027567,5.01397876,3331.8,3331.7,3.09962562]
[1735730027767,0.30072,3331.8,3331.7,3.09962562]
[1735730029067,0.30072,3331.9,3331.8,0.30071]
[1735730029278,0.30072,3331.9,3331.8,1.01085099]
[1735730029481,0.30072,3331.9,3331.8,1.48108311]
[1735730031180,0.30072,3331.9,3331.8,1.48111675]
[1735730032180,0.7642,3332.0,3331.9,0.30071]
[1735730032380,0.7642,3332.0,3331.9,2.56516481]
[1735730033087,0.4635,3332.0,3331.9,2.56516481]
[1735730033279,0.8787,3332.1,3331.9,3.88309039]
[1735730033579,0.4374,3332.1,3332.0,2.01566168]
[1735730034480,0.4374,3332.1,3332.0,42.81566168]
[1735730035178,0.4374,3332.1,3332.0,42.81563311]
[1735730036272,0.4374,3332.1,3332.0,42.28107301]
[1735730037270,0.73809,3332.1,3332.0,42.28107301]
[1735730037883,0.73809,3332.1,3332.0,1.48107301]
[1735730038378,0.73809,3332.1,3332.0,1.10498494]
[1735730038588,0.73809,3332.1,3332.0,1.48107319]
[1735730038797,0.73809,3332.1,3332.0,1.10498494]
[1735730038974,0.73809,3332.1,3332.0,1.48102021]
[1735730040687,0.73809,3332.1,3332.0,1.14702912]
[1735730040886,0.73809,3332.1,3332.0,1.48100021]
[1735730041185,0.73809,3332.1,3332.0,1.18030033]
[1735730041484,0.73809,3332.1,3332.0,0.80421188]
[1735730041986,0.73809,3332.1,3332.0,0.47024079]
[1735730042180,0.4374,3332.1,3331.9,1.178]
[1735730042391,0.7592,3332.0,3331.9,1.178]
[1735730042588,0.7592,3332.0,3331.9,0.47015228]
[1735730042987,0.30072,3331.8,3331.7,1.08404957]
[1735730043184,0.30072,3331.8,3331.7,1.88820075]
[1735730043387,0.30072,3331.8,3331.7,2.26432937]
[1735730043589,0.30072,3331.8,3331.7,1.88821528]
[1735730043889,0.30072,3331.8,3331.7,2.565076]
[1735730046588,0.30072,3331.8,3331.7,2.264346]
[1735730046785,0.30072,3331.8,3331.7,1.18034533]
[1735730046990,0.30072,3331.8,3331.7,0.80421418]
[1735730048985,0.30072,3331.8,3331.7,0.8042313]
[1735730049882,0.30072,3331.8,3331.7,0.80423551]
[1735730050394,0.30072,3331.8,3331.7,0.47016057]
[1735730051287,0.30073,3331.7,3331.6,3.2078]
[1735730051593,0.30073,3331.7,3331.6,4.0120719]
[1735730051992,0.30073,3331.7,3331.6,4.3128119]
[1735730052190,0.30073,3331.7,3331.6,4.0120719]
[1735730053192,0.30073,3331.7,3331.6,4.01208993]